fUSD/lending_fUSD_20250610
["ID","MTS","AMOUNT","RATE_DAILY","PERIOD"]
[365180790,1749521438874,-490.0,0.00016438,2]
[365180791,1749521438883,-151.0,0.00016438,2]
[365180792,1749521438892,-152.340651,0.00016438,2]
[365180793,1749521438902,-490.0,0.00016438,2]
[365180794,1749521438911,-469.5210739,0.00016438,2]
[365180795,1749521438920,-490.0,0.00016438,2]
[365180796,1749521438930,-422.1343478,0.00016438,2]
[365180797,1749521438939,-490.0,0.00016438,2]
[365180798,1749521438948,-590.17072662,0.00016438,2]
[365180799,1749521438957,-490.0,0.00016438,2]
[365180800,1749521438967,-490.0,0.00016438,2]
[365180801,1749521438977,-490.0,0.00016438,2]
[365180802,1749521438987,-490.0,0.00016438,2]
[365180803,1749521438996,-490.0,0.00016438,2]
[365180804,1749521439005,-490.0,0.00016438,2]
[365180805,1749521439014,-490.0,0.00016438,2]
[365180806,1749521439024,-558.59,0.00016438,2]
[365180807,1749521439033,-490.0,0.00016438,2]
[365180808,1749521439042,-490.0,0.00016438,2]
[365180809,1749521439051,-399.11377969,0.00016438,2]
[365180810,1749521439061,-491.12981815,0.00016438,2]
[365180811,1749521439071,-490.0,0.00016438,2]
[365180812,1749521439081,-490.0,0.00016438,2]
[365180813,1749521439091,-490.0,0.00016438,2]
[365180814,1749521439101,-490.0,0.00016438,2]
[365180815,1749521439110,-490.0,0.00016438,2]
[365180816,1749521439120,-490.0,0.00016438,2]
[365180817,1749521439129,-490.0,0.00016438,2]
[365180818,1749521439138,-490.0,0.00016438,2]
[365180819,1749521439147,-490.0,0.00016438,2]
[365180820,1749521439156,-490.0,0.00016438,2]
[365180821,1749521439164,-490.0,0.00016438,2]
[365180822,1749521439171,-490.0,0.00016438,2]
[365180823,1749521439181,-490.0,0.00016438,2]
[365180824,1749521439189,-490.0,0.00016438,2]
[365180825,1749521439197,-490.0,0.00016438,2]
[365180826,1749521439205,-490.0,0.00016438,2]
[365180827,1749521439213,-490.0,0.00016438,2]
[365180828,1749521439220,-490.0,0.00016438,2]
[365180829,1749521439229,-490.0,0.00016438,2]
[365180830,1749521439237,-490.0,0.00016438,2]
[365180831,1749521439245,-490.0,0.00016438,2]
[365180832,1749521439254,-151.0,0.00016438,2]
[365180833,1749521439263,-151.0,0.00016438,2]
[365180834,1749521439272,-151.0,0.00016438,2]
[365180835,1749521439281,-151.0,0.00016438,2]
[365180836,1749521439290,-156.728605,0.00016438,2]
[365180837,1749521439299,-151.0,0.00016438,2]
[365180838,1749521439309,-490.0,0.00016438,2]
[365180839,1749521439318,-151.0,0.00016438,2]
[365180840,1749521439327,-151.0,0.00016438,2]
[365180841,1749521439336,-490.0,0.00016438,2]
[365180842,1749521439345,-151.0,0.00016438,2]
[365180843,1749521439355,-490.0,0.00016438,2]
[365180844,1749521439365,-490.0,0.00016438,2]
[365180845,1749521439375,-151.0,0.00016438,2]
[365180846,1749521439384,-490.0,0.00016438,2]
[365180847,1749521439393,-490.0,0.00016438,2]
[365180848,1749521439403,-151.0,0.00016438,2]
[365180849,1749521439412,-151.0,0.00016438,2]
[365180850,1749521439422,-151.0,0.00016438,2]
[365180851,1749521439431,-151.0,0.00016438,2]
[365180852,1749521439441,-151.0,0.00016438,2]
[365180853,1749521439450,-490.0,0.00016438,2]
[365180854,1749521439460,-490.0,0.00016438,2]
[365180855,1749521439469,-151.0,0.00016438,2]
[365180856,1749521439479,-490.0,0.00016438,2]
[365180857,1749521439493,-151.0,0.00016438,2]
[365180858,1749521439502,-490.0,0.00016438,2]
[365180859,1749521439512,-151.0,0.00016438,2]
[365180860,1749521439521,-490.0,0.00016438,2]
[365180861,1749521439531,-151.0,0.00016438,2]
[365180862,1749521439540,-273.495676,0.00016438,2]
[365180863,1749521439550,-491.62628447,0.00016438,2]
[365180864,1749521439560,-490.0,0.00016438,2]
[365180865,1749521439571,-490.0,0.00016438,2]
[365180866,1749521439581,-582.82,0.00016438,2]
[365180867,1749521439592,-490.0,0.00016438,2]
[365180868,1749521439602,-490.0,0.00016438,2]
[365180869,1749521439611,-490.0,0.00016438,2]
[365180870,1749521439622,-490.0,0.00016438,2]
[365180871,1749521439631,-490.0,0.00016438,2]
[365180872,1749521439641,-151.0,0.00016438,2]
[365180873,1749521439651,-151.0,0.00016438,2]
[365180874,1749521439661,-490.0,0.00016438,2]
[365180875,1749521439671,-151.0,0.00016438,2]
[365180876,1749521439681,-151.0,0.00016438,2]
[365180877,1749521439691,-151.0,0.00016438,2]
[365180878,1749521439701,-490.0,0.00016438,2]
[365180879,1749521439711,-490.0,0.00016438,2]
[365180880,1749521439721,-490.0,0.00016438,2]
[365180881,1749521439731,-400.0,0.00016438,2]
[365180882,1749521439741,-151.0,0.00016438,2]
[365180883,1749521439751,-151.0,0.00016438,2]
[365180884,1749521439763,-151.0,0.00016438,2]
[365180885,1749521439774,-167.996694,0.00016438,2]
[365180886,1749521439784,-490.0,0.00016438,2]
[365180887,1749521439794,-490.0,0.00016438,2]
[365180888,1749521439803,-2278.69,0.00016438,2]
[365180889,1749521439813,-490.0,0.00016438,2]
[365180890,1749521439823,-490.0,0.00016438,2]
[365180891,1749521439832,-428.74779546,0.00016438,2]
[365180892,1749521439842,-490.0,0.00016438,2]
[365180893,1749521439851,-490.0,0.00016438,2]
[365180894,1749521439863,-490.0,0.00016438,2]
[365180895,1749521439872,-490.0,0.00016438,2]
[365180896,1749521439882,-490.0,0.00016438,2]
[365180897,1749521439892,-490.0,0.00016438,2]
[365180898,1749521439901,-490.0,0.00016438,2]
[365180899,1749521439911,-151.0,0.00016438,2]
[365180900,1749521439921,-429.01324392,0.00016438,2]
[365180901,1749521439930,-151.0,0.00016438,2]
[365180902,1749521439939,-490.0,0.00016438,2]
[365180903,1749521439948,-151.0,0.00016438,2]
[365180904,1749521439958,-151.0,0.00016438,2]
[365180905,1749521439967,-151.0,0.00016438,2]
[365180906,1749521439977,-396.97585041,0.00016438,2]
[365180907,1749521439986,-151.0,0.00016438,2]
[365180908,1749521439995,-151.0,0.00016438,2]
[365180909,1749521440005,-490.0,0.00016438,2]
[365180911,1749521440015,-490.0,0.00016438,2]
[365180912,1749521440024,-224.640246,0.00016438,2]
[365180913,1749521440034,-490.0,0.00016438,2]
[365180914,1749521440043,-490.0,0.00016438,2]
[365180915,1749521440053,-490.0,0.00016438,2]
[365180916,1749521440062,-490.0,0.00016438,2]
[365180917,1749521440072,-490.0,0.00016438,2]
[365180918,1749521440081,-490.0,0.00016438,2]
[365180919,1749521440095,-490.0,0.00016438,2]
[365180920,1749521440109,-490.0,0.00016438,2]
[365180921,1749521440119,-490.0,0.00016438,2]
[365180922,1749521440129,-789.14,0.00016438,2]
[365180923,1749521440139,-490.0,0.00016438,2]
[365180924,1749521440148,-490.0,0.00016438,2]
[365180925,1749521440158,-490.0,0.00016438,2]
[365180926,1749521440168,-490.0,0.00016438,2]
[365180927,1749521440177,-490.0,0.00016438,2]
[365180928,1749521440186,-478.26634095,0.00016438,2]
[365180929,1749521440197,-490.0,0.00016438,2]
[365180930,1749521440207,-480.0,0.00016438,2]
[365180931,1749521440216,-490.0,0.00016438,2]
[365180932,1749521440230,-474.48961757,0.00016438,2]
[365180933,1749521440243,-542.3,0.00016438,2]
[365180934,1749521440253,-339.29004766,0.00016438,2]
[365180935,1749521440262,-467.93819467,0.00016438,2]
[365180936,1749521440272,-469.81571982,0.00016438,2]
[365180937,1749521440282,-490.0,0.00016438,2]
[365180938,1749521440292,-490.0,0.00016438,2]
[365180939,1749521440302,-490.0,0.00016438,2]
[365180940,1749521440311,-554.82211843,0.00016438,2]
[365180941,1749521440321,-490.0,0.00016438,2]
[365180942,1749521440331,-151.712195,0.00016438,2]
[365180943,1749521440341,-490.0,0.00016438,2]
[365180944,1749521440351,-468.66621563,0.00016438,2]
[365180945,1749521440361,-448.16303591,0.00016438,2]
[365180946,1749521440371,-490.0,0.00016438,2]
[365180947,1749521440381,-320.12703241,0.00016438,2]
[365180948,1749521440391,-490.0,0.00016438,2]
[365180949,1749521440401,-490.0,0.00016438,2]
[365180950,1749521440411,-437.58966743,0.00016438,2]
[365180951,1749521440421,-490.0,0.00016438,2]
[365180952,1749521440431,-490.0,0.00016438,2]
[365180953,1749521440441,-452.41699207,0.00016438,2]
[365180954,1749521440451,-490.0,0.00016438,2]
[365180955,1749521440461,-296.524329,0.00016438,2]
[365180956,1749521440471,-296.524329,0.00016438,2]
[365180957,1749521440482,-200.193893,0.00016438,2]
[365180958,1749521440497,-296.524329,0.00016438,2]
[365180959,1749521440506,-296.524329,0.00016438,2]
[365180960,1749521440516,-296.524329,0.00016438,2]
[365180967,1749521440587,-296.524329,0.00016438,2]
[365180969,1749521440596,-433.7552138,0.00016438,2]
[365180971,1749521440606,-296.524329,0.00016438,2]
[365180973,1749521440616,-296.524329,0.00016438,2]
[365180975,1749521440625,-490.0,0.00016438,2]
[365180977,1749521440635,-296.524329,0.00016438,2]
[365180978,1749521440644,-453.45229116,0.00016438,2]
[365180979,1749521440654,-296.524329,0.00016438,2]
[365180980,1749521440664,-490.0,0.00016438,2]
[365180981,1749521440673,-296.524329,0.00016438,2]
[365180982,1749521440683,-296.524329,0.00016438,2]
[365180983,1749521440692,-296.524329,0.00016438,2]
[365180984,1749521440702,-448.79109308,0.00016438,2]
[365180985,1749521440711,-296.524329,0.00016438,2]
[365180986,1749521440720,-490.0,0.00016438,2]
[365180987,1749521440729,-296.524329,0.00016438,2]
[365180988,1749521440738,-296.524329,0.00016438,2]
[365180989,1749521440747,-296.524329,0.00016438,2]
[365180990,1749521440757,-364.16100887,0.00016438,2]
[365180991,1749521440766,-439.14196458,0.00016438,2]
[365180992,1749521440775,-296.524329,0.00016438,2]
[365180993,1749521440785,-296.524329,0.00016438,2]
[365180994,1749521440795,-449.09336457,0.00016438,2]
[365180995,1749521440804,-296.524326,0.00016438,2]
[365180996,1749521440813,-441.23237658,0.00016438,2]
[365180997,1749521440823,-490.0,0.00016438,2]
[365180998,1749521440832,-464.20526519,0.00016438,2]
[365180999,1749521440842,-490.0,0.00016438,2]
[365181000,1749521440851,-490.0,0.00016438,2]
[365181001,1749521440860,-433.81316908,0.00016438,2]
[365181002,1749521440870,-452.6237666,0.00016438,2]
[365181003,1749521440880,-490.0,0.00016438,2]
[365181004,1749521440890,-490.0,0.00016438,2]
[365181005,1749521440899,-527.62945556,0.00016438,2]
[365181006,1749521440908,-472.36667081,0.00016438,2]
[365181007,1749521440918,-151.0,0.00016438,2]
[365181008,1749521440927,-151.0,0.00016438,2]
[365181009,1749521440936,-151.0,0.00016438,2]
[365181010,1749521440945,-490.0,0.00016438,2]
[365181011,1749521440955,-199.59679913,0.00016438,2]
[365181012,1749521440963,-151.0,0.00016438,2]
[365181013,1749521440973,-151.0,0.00016438,2]
[365181014,1749521440983,-219.9581,0.00016438,2]
[365181015,1749521440992,-466.67822394,0.00016438,2]
[365181016,1749521441002,-480.1987553,0.00016438,2]
[365181017,1749521441011,-490.0,0.00016438,2]
[365181018,1749521441021,-490.0,0.00016438,2]
[365181019,1749521441030,-457.12366818,0.00016438,2]
[365181020,1749521441040,-467.83141769,0.00016438,2]
[365181021,1749521441049,-490.0,0.00016438,2]
[365181022,1749521441059,-439.83826878,0.00016438,2]
[365181023,1749521441068,-490.0,0.00016438,2]
[365181024,1749521441077,-470.01669683,0.00016438,2]
[365181025,1749521441086,-490.0,0.00016438,2]
[365181026,1749521441096,-490.0,0.00016438,2]
[365181027,1749521441106,-490.0,0.00016438,2]
[365181028,1749521441116,-553.34360108,0.00016438,2]
[365181029,1749521441126,-476.54151371,0.00016438,2]
[365181030,1749521441135,-490.0,0.00016438,2]
[365181031,1749521441144,-296.312761,0.00016438,2]
[365181032,1749521441154,-490.0,0.00016438,2]
[365181033,1749521441163,-490.0,0.00016438,2]
[365181034,1749521441173,-503.17,0.00016438,2]
[365181035,1749521441182,-490.0,0.00016438,2]
[365181036,1749521441191,-468.74493406,0.00016438,2]
[365181037,1749521441201,-433.39384785,0.00016438,2]
[365181038,1749521441211,-490.0,0.00016438,2]
[365181040,1749521441220,-450.20349656,0.00016438,2]
[365181041,1749521441229,-490.0,0.00016438,2]
[365181042,1749521441239,-427.98984473,0.00016438,2]
[365181043,1749521441248,-451.32407755,0.00016438,2]
[365181044,1749521441257,-490.0,0.00016438,2]
[365181045,1749521441267,-480.43531264,0.00016438,2]
[365181046,1749521441276,-265.40803035,0.00016438,2]
[365181047,1749521441680,-201.28038264,0.00016438,2]
[365181048,1749521441690,-490.0,0.00016438,2]
[365181049,1749521441700,-490.0,0.00016438,2]
[365181050,1749521441709,-460.0,0.00016438,2]
[365181051,1749521441719,-437.84008349,0.00016438,2]
[365181052,1749521441729,-425.81931991,0.00016438,2]
[365181053,1749521441738,-460.10957982,0.00016438,2]
[365181054,1749521441749,-474.86139652,0.00016438,2]
[365181055,1749521441758,-490.0,0.00016438,2]
[365181056,1749521441768,-490.0,0.00016438,2]
[365181057,1749521441777,-490.0,0.00016438,2]
[365181058,1749521441787,-490.0,0.00016438,2]
[365181059,1749521441797,-478.27187349,0.00016438,2]
[365181060,1749521441806,-490.0,0.00016438,2]
[365181061,1749521441816,-482.5468387,0.00016438,2]
[365181062,1749521441826,-151.0,0.00016438,2]
[365181063,1749521441835,-457.05523683,0.00016438,2]
[365181064,1749521441845,-151.0,0.00016438,2]
[365181065,1749521441855,-540.0,0.00016438,2]
[365181066,1749521441864,-151.0,0.00016438,2]
[365181067,1749521441874,-151.0,0.00016438,2]
[365181068,1749521441883,-151.0,0.00016438,2]
[365181069,1749521441893,-490.0,0.00016438,2]
[365181070,1749521441903,-420.0,0.00016438,2]
[365181071,1749521441912,-151.0,0.00016438,2]
[365181072,1749521441921,-490.0,0.00016438,2]
[365181073,1749521441931,-157.53036,0.00016438,2]
[365181074,1749521441941,-157.229021,0.00016438,2]
[365181075,1749521441951,-471.21510479,0.00016438,2]
[365181076,1749521441961,-490.0,0.00016438,2]
[365181077,1749521441970,-490.0,0.00016438,2]
[365181078,1749521441980,-490.0,0.00016438,2]
[365181079,1749521441989,-466.38770309,0.00016438,2]
[365181080,1749521441999,-301.00304701,0.00016438,2]
[365181081,1749521442008,-490.0,0.00016438,2]
[365181082,1749521442018,-422.23415847,0.00016438,2]
[365181083,1749521442027,-490.0,0.00016438,2]
[365181084,1749521442036,-490.0,0.00016438,2]
[365181085,1749521442046,-490.0,0.00016438,2]
[365181086,1749521442056,-463.54847461,0.00016438,2]
[365181087,1749521442065,-468.73813256,0.00016438,2]
[365181088,1749521442074,-490.0,0.00016438,2]
[365181089,1749521442083,-464.8729646,0.00016438,2]
[365181090,1749521442093,-489.14731832,0.00016438,2]
[365181091,1749521442102,-487.05674196,0.00016438,2]
[365181092,1749521442112,-464.16468712,0.00016438,2]
[365181093,1749521442122,-490.0,0.00016438,2]
[365181094,1749521442131,-490.0,0.00016438,2]
[365181095,1749521442140,-476.001191,0.00016438,2]
[365181096,1749521442150,-490.0,0.00016438,2]
[365181097,1749521442159,-462.87384836,0.00016438,2]
[365181098,1749521442168,-469.41235611,0.00016438,2]
[365181099,1749521442180,-474.6541924,0.00016438,2]
[365181100,1749521442189,-490.0,0.00016438,2]
[365181101,1749521442198,-490.0,0.00016438,2]
[365181102,1749521442208,-490.0,0.00016438,2]
[365181103,1749521442217,-466.73639574,0.00016438,2]
[365181104,1749521442226,-490.0,0.00016438,2]
[365181105,1749521442239,-490.0,0.00016438,2]
[365181106,1749521442249,-151.0,0.00016438,2]
[365181107,1749521442258,-426.98537202,0.00016438,2]
[365181108,1749521442267,-151.0,0.00016438,2]
[365181109,1749521442277,-151.0,0.00016438,2]
[365181110,1749521442286,-469.74032877,0.00016438,2]
[365181111,1749521442296,-151.0,0.00016438,2]
[365181112,1749521442305,-151.0,0.00016438,2]
[365181113,1749521442315,-490.0,0.00016438,2]
[365181114,1749521442325,-151.0,0.00016438,2]
[365181115,1749521442335,-151.0,0.00016438,2]
[365181116,1749521442344,-151.0,0.00016438,2]
[365181117,1749521442354,-490.0,0.00016438,2]
[365181118,1749521442363,-151.0,0.00016438,2]
[365181119,1749521442373,-490.0,0.00016438,2]
[365181120,1749521442382,-450.0,0.00016438,2]
[365181121,1749521442392,-490.0,0.00016438,2]
[365181122,1749521442401,-490.0,0.00016438,2]
[365181123,1749521442410,-465.81028067,0.00016438,2]
[365181124,1749521442420,-317.10443006,0.00016438,2]
[365181125,1749521442429,-192.85268123,0.00016438,2]
[365181126,1749521442439,-468.47590635,0.00016438,2]
[365181127,1749521442449,-466.93706895,0.00016438,2]
[365181128,1749521442458,-465.88219468,0.00016438,2]
[365181129,1749521442468,-431.73569853,0.00016438,2]
[365181130,1749521442477,-474.71926001,0.00016438,2]
[365181131,1749521442489,-490.0,0.00016438,2]
[365181132,1749521442500,-92.69330733,0.00016438,2]
[365181133,1749521442541,-907.30669267,0.00016438,2]
[365181134,1749521442552,-482.14049691,0.00016438,2]
[365181135,1749521442563,-490.0,0.00016438,2]
[365181136,1749521442572,-490.0,0.00016438,2]
[365181137,1749521442582,-392.49285836,0.00016438,2]
[365181138,1749521442593,-466.63199566,0.00016438,2]
[365181139,1749521442603,-467.66328702,0.00016438,2]
[365181140,1749521442612,-490.0,0.00016438,2]
[365181141,1749521442622,-490.0,0.00016438,2]
[365181142,1749521442631,-468.73135203,0.00016438,2]
[365181143,1749521442640,-508.51667622,0.00016438,2]
[365181144,1749521442650,-490.0,0.00016438,2]
[365181145,1749521442659,-507.97229842,0.00016438,2]
[365181146,1749521442669,-471.20210598,0.00016438,2]
[365181147,1749521442678,-490.0,0.00016438,2]
[365181148,1749521442688,-466.22156615,0.00016438,2]
[365181149,1749521442698,-490.0,0.00016438,2]
[365181150,1749521442707,-500.0,0.00016438,2]
[365181151,1749521442716,-505.70560812,0.00016438,2]
[365181152,1749521442726,-490.0,0.00016438,2]
[365181153,1749521442735,-464.10320424,0.00016438,2]
[365181154,1749521442746,-584.19921821,0.00016438,2]
[365181155,1749521442755,-471.09905457,0.00016438,2]
[365181156,1749521442765,-472.17368308,0.00016438,2]
[365181157,1749521442775,-490.0,0.00016438,2]
[365181158,1749521442784,-485.2393865,0.00016438,2]
[365181159,1749521442794,-470.82660716,0.00016438,2]
[365181160,1749521442804,-483.17230501,0.00016438,2]
[365181161,1749521442814,-469.18318488,0.00016438,2]
[365181162,1749521442824,-507.52,0.00016438,2]
[365181163,1749521442833,-490.0,0.00016438,2]
[365181164,1749521442843,-510.77796003,0.00016438,2]
[365181165,1749521442853,-151.0,0.00016438,2]
[365181166,1749521442863,-479.61598813,0.00016438,2]
[365181167,1749521442874,-151.0,0.00016438,2]
[365181168,1749521442884,-490.0,0.00016438,2]
[365181169,1749521442894,-151.0,0.00016438,2]
[365181170,1749521442903,-286.996563,0.00016438,2]
[365181171,1749521442914,-471.28742813,0.00016438,2]
[365181172,1749521442923,-502.02582914,0.00016438,2]
[365181173,1749521442932,-478.42755557,0.00016438,2]
[365181174,1749521442942,-426.55173888,0.00016438,2]
[365181175,1749521442952,-477.58738745,0.00016438,2]
[365181176,1749521442963,-1032.92421668,0.00016438,2]
[365181177,1749521442972,-490.2632653,0.00016438,2]
[365181178,1749521442981,-490.0,0.00016438,2]
[365181179,1749521442991,-499.944734,0.00016438,2]
[365181181,1749521443000,-490.0,0.00016438,2]
[365181183,1749521443010,-490.0,0.00016438,2]
[365181185,1749521443020,-490.0,0.00016438,2]
[365181187,1749521443030,-500.0,0.00016438,2]
[365181188,1749521443040,-500.0,0.00016438,2]
[365181190,1749521443050,-500.0,0.00016438,2]
[365181192,1749521443060,-500.0,0.00016438,2]
[365181193,1749521443070,-500.0,0.00016438,2]
[365181194,1749521443080,-453.07392344,0.00016438,2]
[365181195,1749521443090,-500.0,0.00016438,2]
[365181196,1749521443100,-500.0,0.00016438,2]
[365181197,1749521443111,-163.62720844,0.00016438,2]
[365181198,1749521443121,-500.0,0.00016438,2]
[365181199,1749521443131,-500.0,0.00016438,2]
[365181200,1749521443140,-500.0,0.00016438,2]
[365181201,1749521443150,-500.0,0.00016438,2]
[365181202,1749521443159,-500.0,0.00016438,2]
[365181204,1749521443170,-500.0,0.00016438,2]
[365181205,1749521443180,-500.0,0.00016438,2]
[365181206,1749521443191,-500.0,0.00016438,2]
[365181207,1749521443201,-500.0,0.00016438,2]
[365181208,1749521443212,-500.0,0.00016438,2]
[365181210,1749521443222,-500.0,0.00016438,2]
[365181211,1749521443232,-500.0,0.00016438,2]
[365181212,1749521443242,-500.0,0.00016438,2]
[365181213,1749521443252,-502.28596399,0.00016438,2]
[365181214,1749521443261,-490.0,0.00016438,2]
[365181215,1749521443271,-152.022102,0.00016438,2]
[365181216,1749521443280,-466.27588775,0.00016438,2]
[365181217,1749521443291,-466.31897936,0.00016438,2]
[365181218,1749521443305,-490.0,0.00016438,2]
[365181219,1749521443314,-466.48372793,0.00016438,2]
[365181220,1749521443324,-461.88660193,0.00016438,2]
[365181221,1749521443334,-427.54285692,0.00016438,2]
[365181222,1749521443344,-490.0,0.00016438,2]
[365181223,1749521443354,-490.0,0.00016438,2]
[365181224,1749521443363,-467.79724866,0.00016438,2]
[365181225,1749521443374,-151.0,0.00016438,2]
[365181226,1749521443384,-151.0,0.00016438,2]
[365181227,1749521443394,-463.62799564,0.00016438,2]
[365181228,1749521443403,-153.93849,0.00016438,2]
[365181229,1749521443413,-470.95786147,0.00016438,2]
[365181230,1749521443423,-475.65046555,0.00016438,2]
[365181231,1749521443433,-490.0,0.00016438,2]
[365181232,1749521443444,-464.00453089,0.00016438,2]
[365181233,1749521443454,-490.0,0.00016438,2]
[365181234,1749521443463,-490.0,0.00016438,2]
[365181235,1749521443473,-489.19384666,0.00016438,2]
[365181236,1749521443484,-489.22952847,0.00016438,2]
[365181237,1749521443499,-465.77540336,0.00016438,2]
[365181238,1749521443508,-490.0,0.00016438,2]
[365181239,1749521443518,-491.93535612,0.00016438,2]
[365181240,1749521443528,-475.21678567,0.00016438,2]
[365181241,1749521443539,-490.96193289,0.00016438,2]
[365181242,1749521443549,-490.0,0.00016438,2]
[365181243,1749521443559,-490.0,0.00016438,2]
[365181244,1749521443570,-490.0,0.00016438,2]
[365181245,1749521443580,-154.978461,0.00016438,2]
[365181246,1749521443590,-463.44754022,0.00016438,2]
[365181247,1749521443600,-320.26304882,0.00016438,2]
[365181248,1749521443621,-169.73695118,0.00016438,2]
[365181249,1749521443631,-486.46842427,0.00016438,2]
[365181250,1749521443641,-490.0,0.00016438,2]
[365181251,1749521443651,-467.2020446,0.00016438,2]
[365181252,1749521443661,-469.78373757,0.00016438,2]
[365181253,1749521443671,-473.10083953,0.00016438,2]
[365181254,1749521443681,-468.52651949,0.00016438,2]
[365181255,1749521443691,-481.43907412,0.00016438,2]
[365181256,1749521443701,-489.62890078,0.00016438,2]
[365181257,1749521443711,-490.0,0.00016438,2]
[365181258,1749521443721,-424.723267,0.00016438,2]
[365181259,1749521443733,-490.0,0.00016438,2]
[365181260,1749521443746,-490.0,0.00016438,2]
[365181261,1749521443756,-462.88743073,0.00016438,2]
[365181262,1749521443766,-488.17857575,0.00016438,2]
[365181263,1749521443775,-490.0,0.00016438,2]
[365181264,1749521443786,-490.0,0.00016438,2]
[365181266,1749521443796,-460.0,0.00016438,2]
[365181268,1749521443806,-463.99013564,0.00016438,2]
[365181270,1749521443815,-480.05384675,0.00016438,2]
[365181272,1749521443824,-490.0,0.00016438,2]
[365181274,1749521443834,-471.33319537,0.00016438,2]
[365181276,1749521443843,-490.0,0.00016438,2]
[365181278,1749521443853,-471.8838699,0.00016438,2]
[365181280,1749521443863,-490.0,0.00016438,2]
[365181282,1749521443872,-151.637199,0.00016438,2]
[365181285,1749521443883,-490.0,0.00016438,2]
[365181288,1749521443892,-474.58862309,0.00016438,2]
[365181290,1749521443902,-490.0,0.00016438,2]
[365181292,1749521443911,-465.38501016,0.00016438,2]
[365181294,1749521443921,-490.0,0.00016438,2]
[365181296,1749521443931,-490.0,0.00016438,2]
[365181298,1749521443941,-474.00846227,0.00016438,2]
[365181300,1749521443951,-646.143134,0.00016438,2]
[365181302,1749521443961,-500.52403877,0.00016438,2]
[365181304,1749521443972,-646.143134,0.00016438,2]
[365181306,1749521443981,-490.0,0.00016438,2]
[365181308,1749521443991,-646.143134,0.00016438,2]
[365181310,1749521444000,-490.0,0.00016438,2]
[365181312,1749521444010,-646.143134,0.00016438,2]
[365181314,1749521444020,-646.143134,0.00016438,2]
[365181316,1749521444029,-480.65482445,0.00016438,2]
[365181318,1749521444039,-646.143134,0.00016438,2]
[365181320,1749521444049,-429.16816704,0.00016438,2]
[365181322,1749521444058,-646.143134,0.00016438,2]
[365181324,1749521444068,-646.143134,0.00016438,2]
[365181326,1749521444077,-490.01349896,0.00016438,2]
[365181328,1749521444087,-646.143134,0.00016438,2]
[365181330,1749521444096,-490.0,0.00016438,2]
[365181332,1749521444106,-490.0,0.00016438,2]
[365181334,1749521444116,-225.232342,0.00016438,2]
[365181336,1749521444126,-646.143134,0.00016438,2]
[365181338,1749521444136,-225.232342,0.00016438,2]
[365181340,1749521444145,-646.143134,0.00016438,2]
[365181342,1749521444155,-475.08056902,0.00016438,2]
[365181345,1749521444165,-225.232342,0.00016438,2]
[365181347,1749521444175,-646.143134,0.00016438,2]
[365181349,1749521444184,-646.143134,0.00016438,2]
[365181351,1749521444200,-646.143134,0.00016438,2]
[365181353,1749521444209,-225.232342,0.00016438,2]
[365181355,1749521444219,-646.143134,0.00016438,2]
[365181357,1749521444229,-225.232342,0.00016438,2]
[365181359,1749521444238,-646.143134,0.00016438,2]